Cogmind - Beta 10.2 @@@ ROGUE MODE // 2021.10.12 @ 22:46:59 Player: ktur Result: Destroyed by as-52109 with Assembled F-torch Performance ------------- Evolutions (0) 0 Regions Visited (4) 800 Robots Destroyed (21) 105 Value Destroyed (379) 379 Prototype IDs (23) 460 Alien Tech Used (0) 0 Bonus (300) 300 TOTAL SCORE: 2044 Bonus ------- Aligned with FarCom 300 Cogmind --------- Core Integrity 0/250 Matter 239/300 Energy 250/250 System Corruption 0% Temperature Cool (70) Movement Walking (45) Location -9/Mines Parts ------- > --- POWER (1) -------- Ion Engine > --- PROPULSION (2) --- Potential Leg Potential Leg > --- UTILITY (2) ------ Large Storage Unit Large Storage Unit > --- WEAPON (2) ------- Grenade Launcher > --- INVENTORY (16) --- Ion Engine Light Treads Wheel Compact Wheel Large Storage Unit Superbattery (2000) Medium Matter Pod (100) Core Shielding Shield Generator Hacking Suite Hacking Suite Trap Reconfigurator Particle Gun Assault Rifle Grenade Launcher Datajack Peak State ------------ > --- POWER ------------ Ion Engine > --- PROPULSION ------- Potential Leg Potential Leg > --- UTILITY ---------- Large Storage Unit Large Storage Unit > --- WEAPON ----------- Assault Rifle Assault Rifle > --- INVENTORY -------- Ion Engine Light Treads Wheel Compact Wheel Large Storage Unit Medium Matter Pod Core Shielding Shield Generator Shield Generator Hacking Suite Hacking Suite Trap Reconfigurator Particle Gun Grenade Launcher Grenade Launcher Datajack [Rating: 28] Favorites ----------- Power Ion Engine Engine Ion Engine Propulsion Light Treads Treads Light Treads Leg Potential Leg Utility Large Storage Unit Storage Large Storage Unit Weapon Assault Rifle Ballistic Gun Assault Rifle Launcher Grenade Launcher Build | -11 -10 -10 -10 -9 ------- Run | Scr Mat Min Exi Min Slots Evolved . | . . . . . Power . | . . . . . Propulsion . | . . . . . Utility . | . . . . . Weapon . | . . . . . Parts Attached 13 | 7 3 . 2 1 Power 2 | 1 1 . . . Engine 2 | 1 1 . . . Core . | . . . . . Reactor . | . . . . . Propulsion 4 | 2 . . 2 . Treads 2 | 2 . . . . Leg 2 | . . . 2 . Wheel . | . . . . . Hover . | . . . . . Flight . | . . . . . Utility 4 | 2 2 . . . Device . | . . . . . Storage 4 | 2 2 . . . Processor . | . . . . . Hackware . | . . . . . Protection . | . . . . . Artifact . | . . . . . Weapon 3 | 2 . . . 1 Energy Gun . | . . . . . Energy Cannon . | . . . . . Ballistic Gun 2 | 2 . . . . Ballistic Cannon . | . . . . . Launcher 1 | . . . . 1 Special Weapon . | . . . . . Impact Weapon . | . . . . . Slashing Weapon . | . . . . . Piercing Weapon . | . . . . . Special Melee Weapon . | . . . . . Unidentified Prototypes . | . . . . . Parts Lost 2 | . 1 . . 1 Power 1 | . 1 . . . Propulsion . | . . . . . Utility . | . . . . . Weapon 1 | . . . . 1 Highest Loss Streak 1 | . 1 . . 1 Average Slot Usage (%) 99 | . 99 100 99 100 Engine 13 | . 13 14 14 14 Treads 24 | . 28 28 18 . Leg 3 | . . . 9 28 Storage 28 | . 28 28 28 28 Ballistic Gun 28 | . 28 28 28 28 Naked Turns . | . . . . . Heaviest Build 41 | 17 41 41 41 41 Greatest Support 60 | 40 40 40 60 60 Greatest Overweight (x) 1 | . 1 1 1 . Average Overweight (x) . | . . 1 . . Largest Inventory Capacity 16 | 8 16 16 16 16 Average Capacity 14 | 5 14 16 16 16 Most Carried 16 | 6 16 16 16 16 Average Carried 13 | 3 12 15 15 16 Final Capacity 16 | 8 16 16 16 16 Final Carried 16 | 6 16 16 16 16 Class Distribution -------------------- 100% | Mutant Dominant Class ---------------- Mutant | -10/Materials Mutant | -10/Mines Mutant | -10/Exiles Mutant | -9/Mines Resources | -11 -10 -10 -10 -9 ----------- Run | Scr Mat Min Exi Min Matter Collected 728 | 288 434 6 . . Remotely . | . . . . . Salvage Created 661 | 89 516 54 . 2 Parts 52 | 1 49 2 . . Haulers Intercepted 1 | . 1 . . . Recyclers Shooed 3 | . 3 . . . Parts Field Recycled . | . . . . . Retrieved Matter . | . . . . . Parts Self-Destructed . | . . . . . Prevented . | . . . . . Kills | -11 -10 -10 -10 -9 ------- Run | Scr Mat Min Exi Min Combat Hostiles Destroyed 18 | . 12 1 . 5 Guns 13 | . 12 1 . . AOE 5 | . . . . 5 Classes Destroyed 9 | 1 7 . . 1 Worker 1 | . 1 . . . Builder 1 | . 1 . . . Hauler 1 | . 1 . . . Recycler 2 | 1 1 . . . Operator 2 | . 2 . . . Watcher 1 | . 1 . . . Swarmer 6 | . 6 . . . Grunt 7 | . 6 1 . . Assembled 5 | . . . . 5 Best Kill Streak 5 | 1 5 1 . 5 Combat Bots Only 5 | . 3 1 . 5 Max Kills in Single Turn 3 | 1 2 1 . 3 Gunslinging . | . . . . . Exploded 3 | . . . . 3 Melee . | . . . . . Uniques/NPCs Destroyed . | . . . . . Combat | -11 -10 -10 -10 -9 -------- Run | Scr Mat Min Exi Min Damage Taken 968 | . 619 . . 349 Core 258 | . 174 . . 84 Absorbed by Shields . | . . . . . Core Remaining (%) 100 | 100 . . . . Volleys Fired 62 | 3 54 1 . 4 Largest 2 | 2 2 2 . 2 Hottest 40 | 40 40 40 . 40 Shots Fired 121 | 6 108 2 . 5 Gun 118 | 6 108 2 . 2 Cannon . | . . . . . Launcher 3 | . . . . 3 Special . | . . . . . Kinetic 118 | 6 108 2 . 2 Thermal . | . . . . . Explosive 3 | . . . . 3 Electromagnetic . | . . . . . Robot Hit Streak 10 | 2 10 2 . 4 Robot Miss Streak 4 | 1 4 . . 1 Penetration Max . | . . . . . Secondary Targets 2 | . 2 . . . Max Gunslinging Chain 1 | . 1 . . . Shots Hit Robots 72 | 3 64 1 . 4 Core Hits 40 | 1 26 1 . 12 Critical Hits . | . . . . . Critical Kills . | . . . . . Critical Parts Destroyed . | . . . . . Melee Attacks . | . . . . . Impact . | . . . . . Slashing . | . . . . . Piercing . | . . . . . Sneak Attacks . | . . . . . Combat Hostiles . | . . . . . Follow-up Attacks . | . . . . . Damage Inflicted 1246 | 15 853 15 . 363 Guns 848 | 15 821 12 . . Cannons . | . . . . . Explosions 363 | . . . . 363 Melee . | . . . . . Ramming 35 | . 32 3 . . Kinetic 848 | 15 821 12 . . Thermal . | . . . . . Explosive 363 | . . . . 363 Electromagnetic . | . . . . . Impact . | . . . . . Slashing . | . . . . . Piercing . | . . . . . Highest Corruption . | . . . . . Average Corruption . | . . . . . Corruption Purged . | . . . . . Overload Shots . | . . . . . Overflow Damage 3 | . . . . 3 Projectiles . | . . . . . Explosions 3 | . . . . 3 Melee . | . . . . . Knockbacks . | . . . . . Impact . | . . . . . Kinetic . | . . . . . Secondary . | . . . . . Self-Inflicted Damage 90 | . . . . 90 Shots 3 | . . . . 3 Rammed 6 | . 5 1 . . Targets Rammed 7 | . 6 1 . . Kicked . | . . . . . Crushed 1 | . 1 . . . Highest Temperature 60 | . 9 . . 60 Average Temperature 12 | . 3 . . 30 Received Heat Transfer 457 | . 237 . . 220 Siege Activations . | . . . . . Robots Corrupted . | . . . . . Combat Hostiles . | . . . . . Parts Fried . | . . . . . Impact Corruptions . | . . . . . Robots Melted . | . . . . . Combat Hostiles . | . . . . . Parts Melted . | . . . . . Heat Transferred . | . . . . . Parts Sabotaged . | . . . . . Parts Stolen . | . . . . . Parts Stripped . | . . . . . Power Chain Reactions . | . . . . . Missiles Intercepted . | . . . . . Alert | -11 -10 -10 -10 -9 ------- Run | Scr Mat Min Exi Min Peak Influence 366 | 5 366 69 . 35 Initial 39 | . 3 39 . . Average 114 | . 149 58 . 8 Maximum Alert Level 1 | . 1 . . . Low Security (%) 78 | 100 69 100 . 100 Level 1 21 | . 30 . . . Level 2 . | . . . . . Level 3 . | . . . . . Level 4 . | . . . . . Level 5 . | . . . . . High Security . | . . . . . Max Security . | . . . . . Squads Dispatched 4 | . 3 1 . . Investigation 1 | . 1 . . . Extermination . | . . . . . Reinforcement 2 | . 2 . . . Assault 1 | . . 1 . . Garrison . | . . . . . Intercept . | . . . . . Construction Impeded . | . . . . . Haulers Reinforced . | . . . . . Stealth | -11 -10 -10 -10 -9 --------- Run | Scr Mat Min Exi Min Distress Signals 2 | . 2 . . . Communications Jammed . | . . . . . Distress Signals . | . . . . . Times Spotted 53 | . 40 2 . 11 Peak Tracking Total 8 | . 5 1 . 8 Tactical Retreats 9 | . 8 . . 1 Traps | -11 -10 -10 -10 -9 ------- Run | Scr Mat Min Exi Min Traps Triggered 1 | . 1 . . . Indirectly . | . . . . . Trap Hack Attempts . | . . . . . Triggered . | . . . . . Disarmed . | . . . . . Reprogrammed . | . . . . . Reused . | . . . . . Traps Extracted . | . . . . . Installed . | . . . . . Triggered . | . . . . . Machines | -11 -10 -10 -10 -9 ---------- Run | Scr Mat Min Exi Min Machines Disabled . | . . . . . Max in Single Turn . | . . . . . Machines Sabotaged . | . . . . . Garrisons Compromised . | . . . . . Overloaded Fab Kills . | . . . . . Fab Network Shutdowns . | . . . . . Hacking | -11 -10 -10 -10 -9 --------- Run | Scr Mat Min Exi Min Machines Accessed 7 | . 4 1 2 . Terminals 2 | . 2 . . . Fabricators . | . . . . . Repair Stations . | . . . . . Recycling Units 2 | . 2 . . . Scanalyzers . | . . . . . Garrison Access . | . . . . . Total Hacks 16 | . 10 1 5 . Successful 12 | . 6 1 5 . Failed 4 | . 4 . . . Catastrophic . | . . . . . Database Lockouts . | . . . . . Manual 9 | . 8 . 1 . Terminals 8 | . 8 . . . Fabricators . | . . . . . Repair Stations . | . . . . . Recycling Units 2 | . 2 . . . Scanalyzers . | . . . . . Garrison Access . | . . . . . Terminal Hacks 9 | . 3 1 5 . Record 4 | . . . 4 . Robot Analysis 2 | . 2 . . . Open Door 1 | . . 1 . . Unreport Threat 1 | . 1 . . . EX-Prototype ID Bank 1 | . . . 1 . Fabricator Hacks . | . . . . . Repair Station Hacks . | . . . . . Recycling Unit Hacks 2 | . 2 . . . Report Inventory 1 | . 1 . . . Retrieve Components 1 | . 1 . . . Scanalyzer . | . . . . . Garrison Access Hacks . | . . . . . Unauthorized Hacks 1 | . 1 . . . Terminals 1 | . 1 . . . Operators 1 | . 1 . . . Fabricators . | . . . . . Repair Stations . | . . . . . Recycling Units . | . . . . . Scanalyzers . | . . . . . Garrison Access . | . . . . . Data Cores Recovered . | . . . . . Used . | . . . . . Hacking Detections 3 | . 3 . . . Full Trace Events . | . . . . . Feedback Events . | . . . . . Feedback Blocked . | . . . . . Robot Schematics Acquired . | . . . . . Robots Built . | . . . . . Matter . | . . . . . Time . | . . . . . Total Robot Build Rating . | . . . . . Part Schematics Acquired . | . . . . . Parts Built . | . . . . . Matter . | . . . . . Time . | . . . . . Total Part Build Rating . | . . . . . Parts Repaired . | . . . . . Time . | . . . . . Parts Recycled . | . . . . . Recycled Matter . | . . . . . Retrieved Matter . | . . . . . Retrieved Components 10 | . 10 . . . Parts Scanalyzed . | . . . . . Part Schematics Acquired . | . . . . . Parts Damaged . | . . . . . Bothacking | -11 -10 -10 -10 -9 ------------ Run | Scr Mat Min Exi Min Used RIF Installer . | . . . . . Robots Hacked . | . . . . . Non-combat . | . . . . . Combat . | . . . . . Robot Hacks Applied . | . . . . . Relay Couplers Released . | . . . . . Robots Rewired . | . . . . . Allies Hacked . | . . . . . Hacks Repelled . | . . . . . Allies | -11 -10 -10 -10 -9 -------- Run | Scr Mat Min Exi Min Total Allies 1 | . . 1 . . Largest Group 1 | . . . 1 1 Highest-Rated Group 31 | . . . 31 31 Highest-Rated Ally 31 | . . . 31 31 Total Orders . | . . . . . Ally Attacks 2 | . . . . 2 Total Damage 40 | . . . . 40 Kills . | . . . . . Allies Corrupted . | . . . . . Allies Melted . | . . . . . Intel | -11 -10 -10 -10 -9 ------- Run | Scr Mat Min Exi Min Robot Analysis Total 2 | . 2 . . . Derelict Logs Recovered 1 | . . 1 . . Drone Launches . | . . . . . Drone Recoveries . | . . . . . Exploration | -11 -10 -10 -10 -9 ------------- Run | Scr Mat Min Exi Min Turns Passed 1836 | 87 1007 289 368 85 Spaces Moved 987 | 40 422 157 257 111 Core 1 | 1 . . . . Treads 752 | 39 422 157 134 . Legs 234 | . . . 123 111 Wheels . | . . . . . Hover . | . . . . . Flight . | . . . . . Fastest Speed 45 | 50 160 180 90 45 Average Speed 153 | 157 175 180 137 66 Slowest Speed 180 | 160 180 180 180 90 Overloaded Moves 57 | . . . . 57 Propulsion Burnouts . | . . . . . Robots Hopped . | . . . . . Cave-ins Triggered . | . . . . . Exploration Rate (%) 43 | 5 72 43 61 35 Regions Visited 4 Branch Regions 3 Pre-discovered Areas 1 | . . . 1 . Known Exits Taken 1 | . . 1 . . Unknown Exits Taken 3 | 1 1 . 1 . Scrap Searched . | . . . . . Spaces Dug . | . . . . . Terrain Destroyed 33 | . . . . 33 Melee . | . . . . . Projectile . | . . . . . AOE 33 | . . . . 33 Terrain Rammed . | . . . . . Walls Destroyed . | . . . . . Machines Disabled . | . . . . . Actions | -11 -10 -10 -10 -9 --------- Run | Scr Mat Min Exi Min Total 1185 | 55 579 161 274 116 Wait 78 | . 71 1 6 . Move 983 | 39 421 156 256 111 Hop . | . . . . . Pick Up 27 | 6 16 1 4 . Fast Attach 10 | 7 1 . 2 . Attach . | . . . . . Detach . | . . . . . Swap 3 | . 2 . . 1 Drop 15 | . 8 1 6 . Fire 62 | 3 54 1 . 4 Melee . | . . . . . Ram . | . . . . . Kick . | . . . . . Crush 7 | . 6 1 . . Escape Stasis . | . . . . . Rewire . | . . . . . Trap . | . . . . . Miscellaneous . | . . . . . Route ------- -11/Scrapyard -10/Materials (discovered 4 exits: [*Mat x2] / *Min x2) -10/Mines (discovered 2 exits: [*Mat] / *Exi) -10/Exiles -9/Mines History --------- Turn | Location | Event 13 | -11/Scrapyard | Discovered new exit (range 16) 88 | -11/Scrapyard | Entered Materials 208 | -10/Materials | Discovered new exit (range 16) 248 | -10/Materials | Core integrity fell below 50% 309 | -10/Materials | Discovered new exit (range 9) 320 | -10/Materials | Build established: Mutant 437 | -10/Materials | Discovered new exit (range 15) 703 | -10/Materials | Discovered new exit (range 8) 1095 | -10/Materials | Entered Mines 1134 | -10/Mines | Met a Derelict who couldn't figure out how to use a Trap Extractor 1196 | -10/Mines | Discovered new exit (range 8) 1341 | -10/Mines | Identified exit to Exiles 1358 | -10/Mines | Met a Derelict testing a Signal Generator 1375 | -10/Mines | Deemed a non-threat by the Exiles lab entrance 1384 | -10/Mines | Entered Exiles 1384 | -10/Exiles | Accompanied by 1 ally 1429 | -10/Exiles | Met 8R-AWN 1460 | -10/Exiles | Met EX-HEX 1510 | -10/Exiles | Met EX-BIN 1554 | -10/Exiles | Aligned with FarCom system 1555 | -10/Exiles | Given EX-Vault access code 1606 | -10/Exiles | Opened EX-Vault 1630 | -10/Exiles | Found Potential Leg 1632 | -10/Exiles | Found Potential Leg 1635 | -10/Exiles | Found Trap Reconfigurator 1639 | -10/Exiles | Found Superbattery 1659 | -10/Exiles | Warned to stay clear of 0b10 Research branches 1683 | -10/Exiles | Met EX-DEC 1688 | -10/Exiles | Learned location of Zion (-6) 1736 | -10/Exiles | Discovered new exit (range 14) 1752 | -10/Exiles | Stole three prototypes: Potential Leg, Superbattery, Trap Reconfigurator 1752 | -10/Exiles | Entered Mines 1752 | -9/Mines | Accompanied by 1 ally 1755 | -9/Mines | Met a Derelict bent on vengeance 1778 | -9/Mines | Assembled infested the area 1832 | -9/Mines | Core integrity fell below 20% 1837 | -9/Mines | Destroyed by as-52109 with Assembled F-torch Last Messages --------------- >>Record "MSG004902-01*" PINNED - I saw a Programmer snooping around in the Mines recently, it's only a matter of time before they find us. We might need to prioritize getting out of here and finding a better environment less hostile to science. 01736_ EXIT=FOUND LOCATION=UNKNOWN GOAL=ESCAPE 01752_ Receiving FarCom transmissions... 01778_ ALERT: Infestation in the mines, dispatching Demolisher response squad. 01808_ SF-WEX(g): "I WILL HAVE VENGEANCE!" 01831_ Destroyed Asb. Hover Unit. 01831_ as-18755 destroyed. 01832_ Assault Rifle destroyed. 01833_ Destroyed Asb. Hover Unit. 01833_ as-89880 destroyed. 01833_ as-85901 destroyed. 01833_ as-59346 destroyed. 01835_ as-87602 destroyed. Map ----- +----------------------------------------------------+ | ???????????????????????????+ #??????? | | ???????????????????????????+ #??????? | | ???????????????????????????# #??????? | | ???????????????????????????# #??????? | | ???????????????????????????# #??????? | | ???????????????????????????# #??????? | | ????????????????????####???##### ###??????? | | ???????????????????## ####????# #????????? | | ???????????????????# ##???# #??????? | | ??????????????????## #???# #????? | | ????????????????### #???# #??? | | ???????????????## ##### ## | | ???????????????# | | ???????????????# d # | | ???????????????## d ## ##### | | ????????????????## # # ##???? | | ?????????########## # ## ##???? | | ?????????# # ## ##???? # ### | | ?????????# ######## # ## #????### #?? | | ?????????# #??????# ## #???????? #?? | | ?????##### #??????# ## #????????? ?? | | ????## ## #??????##### ## #????????? ? | | ???## #?#####??### ## ????????? | | ???# ###### ## ## ### ????????? | | ???# #### # #?# ???????? | | ???## ## @ #??# ??????? | | ????## %! ## #???# ?????? | | ?????# ! ## #???? ????? | | ????## ## aa ### #???? ##???? | | ???## ### ### ##????? ##????? | | ??## ##?## ### #?????? #?????? | | ??# #???# #??????? ???????? | | ??# #??## #????????????????? | | ??#### # ##### ##????????????????? | | ?????# ##### ####?????????????????? | | ?????# #???# #< #????????????????????? | | ?????# #???# ##### #????????????????????? | | ?????# ##### #???# #????????????????????? | | ?????# ## #???# #????????????????????? | | ?????### ## #???# #????????????????????? | | ???????# ## ###???# #????????????????????? | | ???##### ## ##????# ????????????????????? | | ???# ##???# $????????????????????? | | ??# #???#### ???????????????????? | | ??# ## #??????#???????????????????? | | ??## ##### ???????????????????????? | | ???###????## #?????????????????????? | | ???????????? #?????????????????????? | | ????????????# ##?????????????????????? | | ????????????? ###??????????????????????? | +----------------------------------------------------+ Best States ------------- Heat Dissipation 25 Energy Generation 10 Energy Capacity 250 Matter Stores 300 Matter Capacity 300 Sight Range 16 Terrain Scan Density 10 Evasion (%) 51 Recoil Reduction 2 Item Schematics ----------------- None Robot Schematics ------------------ None Fabricated ------------ Nothing Alien Tech Used ----------------- None Achievements -------------- None Challenges ------------ None Game ------ Seed FocalRestorationShockpuncher Manual? 0 Play Time 00:14:14 Cumulative 224.4 hours Start 2021.10.10 @ 04:22:28 End 2021.10.12 @ 22:46:59 Sessions 2 Manual Loads 0 Difficulty Rogue Special Mode None Game No. 282 Rogue 282 Adventurer 0 Explorer 0 Win Type - Total 9 Types 6/0/2/1/0/0/0/0/0 Lore% 84 Gallery% 83 Achievement% 69 Wizard Run 0 Options --------- ASCII 0 Keyboard 0 Movement Arrows Keybinds 0 Fullscreen 1 Font 18/SmallcapsGlow Map View 76x50 Tactical HUD 1 Map Filters NONE Filters NONE Steam 1 RUN: d8a6fd70-6f4e-4315-9289-3e1ff1de3778